fUSD/lending_fUSD_20251113
["ID","MTS","AMOUNT","RATE_DAILY","PERIOD"]
[393800407,1763001038592,-1000.0,0.00018521,2]
[393800409,1763001038602,-1000.0,0.00018521,2]
[393800411,1763001038612,-506.77904287,0.00018521,2]
[393800413,1763001038622,-569.5879799,0.00018521,2]
[393800415,1763001038632,-420.0,0.00018567,2]
[393800417,1763001038642,-420.0,0.00018567,2]
[393800420,1763001038652,-1680.0,0.00018659,2]
[393800422,1763001038662,-230.50636849,0.000187,2]
[393800424,1763001038672,-300.0,0.000187,2]
[393800426,1763001038682,-280.21440447,0.000187,2]
[393800428,1763001038691,-195.0,0.000187,2]
[393800430,1763001038702,-400.36775104,0.000187,2]
[393800432,1763001038714,-193.70507279,0.000187,2]
[393800434,1763001038723,-427.23407631,0.000187,2]
[393800436,1763001038733,-250.0,0.000187,2]
[393800438,1763001038742,-151.02,0.000188,2]
[393800440,1763001038752,-151.02,0.000188,2]
[393800442,1763001038762,-500.0,0.000189,2]
[393800444,1763001038772,-300.0,0.00019,2]
[393800446,1763001038786,-4946.0401473,0.00019,2]
[393800447,1763001038795,-354.8046349,0.0001901,7]
[393800450,1763001038806,-1500.0,0.00019068,2]
[393800451,1763001038816,-471.0,0.00019222,2]
[393800453,1763001038826,-250.0,0.00019348,2]
[393800455,1763001038836,-1730.43454739,0.000195,7]
[393800458,1763001038847,-500.0,0.00019616,2]
[393800460,1763001038856,-1272.26,0.00019697,2]
[393800462,1763001038866,-500.0,0.00019973,2]
[393800464,1763001038877,-500.0,0.00019973,2]
[393800466,1763001038887,-500.0,0.00019973,2]
[393800468,1763001038896,-502.82717258,0.00019973,2]
[393800470,1763001038906,-500.0,0.00019973,2]
[393800472,1763001038915,-200.0,0.00019973,2]
[393800474,1763001038926,-500.0,0.00019973,2]
[393800476,1763001038936,-500.0,0.00019973,2]
[393800477,1763001038946,-500.0,0.00019973,2]
[393800479,1763001038956,-500.0,0.00019973,2]
[393800482,1763001038966,-500.0,0.00019973,2]
[393800483,1763001038977,-502.34464455,0.00019973,2]
[393800485,1763001038987,-218.92698691,0.00019973,2]
[393800487,1763001038996,-500.0,0.00019973,2]
[393800490,1763001039006,-500.0,0.00019973,2]
[393800492,1763001039018,-500.0,0.00019973,2]
[393800494,1763001039029,-327.20206162,0.00019973,2]
[393800496,1763001039039,-500.0,0.00019973,2]
[393800498,1763001039049,-65538.02197142,0.0001999,2]
[393800500,1763001039063,-174.04178479,0.00019997,2]
[393800502,1763001039074,-1027.51540983,0.0002,2]
[393800504,1763001039084,-25382.8425487,0.0002,2]
[393800506,1763001039095,-100524.65186634,0.0002,5]
[393800508,1763001039105,-164.0,0.0002,3]
[393800509,1763001039116,-587.0,0.00020279,2]
[393800512,1763001039127,-587.0,0.00020279,2]
[393800514,1763001039138,-2351.0,0.00020481,2]
[393800516,1763001039148,-500.0,0.00020521,2]
[393800517,1763001039159,-500.0,0.00020521,2]
[393800520,1763001039170,-500.0,0.00020521,2]
[393800522,1763001039180,-1000.0,0.00020521,2]
[393800524,1763001039190,-1000.0,0.00020521,2]
[393800526,1763001039199,-1000.0,0.00020521,2]
[393800527,1763001039209,-352.74427323,0.00020521,2]
[393800530,1763001039220,-982.77598454,0.00020521,2]
[393800532,1763001039230,-658.13465146,0.00020521,2]
[393800534,1763001039240,-1003.61158454,0.00020521,2]
[393800535,1763001039249,-501.86872129,0.00020521,2]
[393800537,1763001039258,-1000.0,0.00020521,2]
[393800539,1763001039268,-1006.67445187,0.00020521,2]
[393800540,1763001039278,-400.0,0.00020658,2]
[393800541,1763001039289,-1272.26,0.00020693,2]
[393800542,1763001039298,-297.28993269,0.00020993,2]
[393800543,1763001039311,-10852.68385532,0.00021,2]
[393800544,1763001039320,-1182.99820202,0.00021,2]
[393800545,1763001039330,-195.27056415,0.00021,2]
[393800546,1763001039339,-1500.0,0.00021068,2]
[393800547,1763001039349,-1511.52144643,0.00021068,2]
[393800548,1763001039359,-506.92278561,0.00021068,2]
[393800549,1763001039369,-1500.0,0.00021068,2]
[393800550,1763001039379,-230.50636842,0.00021128,2]
[393800551,1763001039389,-600.0,0.00021342,2]
[393800552,1763001039399,-2159.83513634,0.000215,2]
[393800553,1763001039409,-1894.07329233,0.00021616,2]
[393800554,1763001039419,-1018.07329088,0.00021616,2]
[393800555,1763001039429,-1272.26,0.00021689,2]
[393800556,1763001039439,-500.0,0.00021973,2]
[393800557,1763001039448,-500.0,0.00021973,2]
[393800558,1763001039458,-150.31084984,0.00021973,2]
[393800559,1763001039468,-150.0,0.00021973,2]
[393800560,1763001039478,-162.39700313,0.00021973,2]
[393800561,1763001039488,-158.93583,0.00021973,7]
[393800562,1763001039497,-58279.5895206,0.00022,4]
[393800563,1763001039506,-151.0,0.00022,7]
[393800564,1763001039516,-151.0,0.00022,7]
[393800565,1763001039526,-151.0,0.00022,7]
[393800566,1763001039536,-1123.555561,0.00022,7]
[393800567,1763001039545,-1123.555561,0.00022,7]
[393800568,1763001039557,-1123.555561,0.00022,7]
[393800569,1763001039567,-1123.555561,0.00022,7]
[393800570,1763001039576,-6123.36,0.00022,7]
[393800571,1763001039586,-267.86529,0.00022,7]
[393800572,1763001039595,-151.0,0.00022,7]
[393800573,1763001039604,-151.0,0.00022,7]
[393800574,1763001039613,-163.424179,0.00022,7]
[393800575,1763001039623,-800.0,0.00022027,2]
[393800576,1763001039632,-823.0,0.00022149,2]
[393800577,1763001039641,-583.0,0.00022149,2]
[393800578,1763001039650,-3292.0,0.00022481,2]
[393800579,1763001039659,-2900.0,0.000225,15]
[393800580,1763001039669,-35192.1207286,0.000225,2]
[393800581,1763001039678,-1000.0,0.00022521,2]
[393800582,1763001039688,-1000.0,0.00022521,2]
[393800583,1763001039698,-183.39180887,0.00022521,2]
[393800584,1763001039712,-1272.26,0.00022685,2]
[393800585,1763001039721,-518.43732855,0.0002271,2]
[393800586,1763001039730,-1000.0,0.00022712,2]
[393800587,1763001039739,-19219.98002134,0.000229,2]
[393800588,1763001039750,-435.91185601,0.00023,2]
[393800589,1763001039760,-998.5774145,0.00023,2]
[393800590,1763001039769,-1500.0,0.00023068,2]
[393800591,1763001039778,-1009.34676905,0.00023068,2]
[393800592,1763001039788,-2562.56127671,0.000231,2]
[393800593,1763001039798,-51705.35315664,0.000232,2]
[393800594,1763001039809,-1200.0,0.00023397,2]
[393800595,1763001039819,-150.0,0.00023419,2]
[393800596,1763001039829,-200.0,0.000235,2]
[393800597,1763001039838,-230.50636842,0.00023557,2]
[393800598,1763001039848,-2000.0,0.00023616,2]
[393800599,1763001039857,-1272.26,0.00023681,2]
[393800600,1763001039867,-151.0,0.00023897,2]
[393800601,1763001039877,-151.0,0.00023897,2]
[393800602,1763001039886,-151.0,0.00023897,2]
[393800603,1763001039895,-151.0,0.00023897,2]
[393800604,1763001039904,-151.0,0.00023897,2]
[393800605,1763001039913,-151.0,0.00023897,2]
[393800606,1763001039923,-151.0,0.00023897,2]
[393800607,1763001039931,-151.0,0.00023897,2]
[393800608,1763001039941,-151.0,0.00023897,2]
[393800609,1763001039950,-151.0,0.00023897,2]
[393800611,1763001039960,-151.0,0.00023897,2]
[393800615,1763001040151,-151.0,0.00023897,2]
[393800616,1763001040161,-151.0,0.00023897,2]
[393800617,1763001040170,-151.0,0.00023897,2]
[393800618,1763001040180,-151.0,0.00023897,2]
[393800619,1763001040190,-151.0,0.00023897,2]
[393800620,1763001040199,-151.0,0.00023897,2]
[393800621,1763001040209,-151.0,0.00023897,2]
[393800622,1763001040222,-151.0,0.00023897,2]
[393800623,1763001040232,-151.0,0.00023897,2]
[393800624,1763001040242,-151.0,0.00023897,2]
[393800625,1763001040252,-151.0,0.00023897,2]
[393800626,1763001040262,-151.0,0.00023897,2]
[393800627,1763001040271,-151.0,0.00023897,2]
[393800628,1763001040281,-151.0,0.00023897,2]
[393800629,1763001040291,-151.0,0.00023897,2]
[393800630,1763001040303,-155.92773059,0.00023897,2]
[393800631,1763001040312,-3600.0,0.00024,2]
[393800632,1763001040322,-10749.61629141,0.00024,2]
[393800633,1763001040332,-6123.36,0.00024,7]
[393800634,1763001040342,-408.86994665,0.00024082,2]
[393800635,1763001040351,-310.92938163,0.00024164,2]
[393800636,1763001040361,-1152.0,0.00024192,2]
[393800637,1763001040370,-414.19538437,0.0002421,2]
[393800638,1763001040379,-5779.09646846,0.00024276,2]
[393800639,1763001040389,-162.31339977,0.0002455,15]
[393800640,1763001040398,-1000.0,0.00024658,2]
[393800641,1763001040408,-4609.0,0.00024676,2]
[393800642,1763001040417,-1272.26,0.00024677,2]
[393800643,1763001040426,-151.02,0.0002479,2]
[393800644,1763001040436,-123452.60619221,0.000248,3]
[393800694,1763001040944,-151.0,0.00021973,7]
[393800696,1763001040953,-113784.28201179,0.000248,3]
[393800698,1763001040962,-151.0,0.000248,7]
[393800700,1763001040971,-151.0,0.000248,7]
[393800703,1763001040981,-151.32759,0.000248,7]
[393800704,1763001040990,-53971.20895595,0.000249,3]
[393800779,1763001043395,-263.37186551,0.000249,3]
[393800783,1763001083409,890.51226223,0.00040655,30]
[393800784,1763001109072,500.0,0.00016999,2]
[393800785,1763001109105,500.0,0.00016999,2]
[393800786,1763001109141,149.86718454,0.00016999,2]
[393800787,1763001109165,350.13281546,0.00016999,2]
[393800788,1763001109196,500.0,0.00016999,2]
[393800789,1763001109251,500.0,0.00016999,2]
[393800790,1763001109285,500.0,0.00016999,2]
[393800791,1763001109315,500.0,0.00016999,2]
[393800792,1763001109352,500.0,0.00016999,2]
[393800793,1763001109385,500.0,0.00016999,2]
[393800794,1763001109421,500.0,0.00016999,2]
[393800795,1763001109469,500.0,0.00016999,2]
[393800796,1763001109498,500.0,0.00016999,2]
[393800797,1763001109528,500.0,0.00016999,2]
[393800798,1763001109563,500.0,0.00016999,2]
[393800799,1763001109601,500.0,0.00016999,2]
[393800800,1763001109632,500.0,0.00016999,2]
[393800801,1763001109699,349.44612772,0.00016999,2]
[393800802,1763001109747,500.0,0.00016999,2]
[393800803,1763001109777,500.0,0.00016999,2]
[393800804,1763001109843,500.0,0.00016999,2]
[393800805,1763001109893,500.0,0.00016999,2]
[393800806,1763001109945,500.0,0.00016999,2]
[393800807,1763001110000,300.43105682,0.00016999,2]
[393800808,1763001110024,199.56894318,0.00016999,2]
[393800809,1763001110279,500.0,0.00016999,2]
[393800810,1763001127720,250.0,0.00040655,30]
[393800811,1763001128317,250.0,0.00040655,30]
[393800812,1763001130237,250.0,0.00040655,30]
[393800813,1763001130854,250.0,0.00040655,30]
[393800814,1763001131467,250.0,0.00040655,30]
[393800815,1763001131805,500.0,0.00016999,2]
[393800816,1763001131836,500.0,0.00016999,2]
[393800817,1763001131873,500.0,0.00016999,2]
[393800818,1763001131914,500.0,0.00016999,2]
[393800819,1763001131953,500.0,0.00016999,2]
[393800820,1763001131991,500.0,0.00016999,2]
[393800821,1763001132054,500.0,0.00016999,2]
[393800822,1763001132086,250.0,0.00040655,30]
[393800823,1763001132117,500.0,0.00016999,2]
[393800824,1763001132147,500.0,0.00016999,2]
[393800825,1763001132182,313.14199677,0.00016999,2]
[393800826,1763001132221,500.0,0.00016999,2]
[393800827,1763001132261,500.0,0.00016999,2]
[393800828,1763001132301,500.0,0.00016999,2]
[393800829,1763001132353,500.0,0.00016999,2]
[393800830,1763001132403,500.0,0.00016999,2]
[393800831,1763001132474,500.0,0.00016999,2]
[393800832,1763001132523,500.0,0.00016999,2]
[393800833,1763001132684,250.0,0.00040655,30]
[393800834,1763001133388,250.0,0.00040655,30]
[393800835,1763001141831,500.0,0.00016999,2]
[393800836,1763001141875,500.0,0.00016999,2]
[393800837,1763001141911,500.0,0.00016999,2]
[393800838,1763001141960,186.86800323,0.00016999,2]
[393800839,1763001141986,313.13199677,0.00016999,2]
[393800840,1763001142121,500.0,0.00016999,2]
[393800841,1763001142160,500.0,0.00016999,2]
[393800842,1763001142193,442.09466451,0.00016999,2]
[393800843,1763001142230,500.0,0.00016999,2]
[393800844,1763001142293,500.0,0.00016999,2]
[393800845,1763001142361,500.0,0.00016999,2]
[393800847,1763001171846,150.0,0.00027397,120]
[393800848,1763001172065,150.0,0.00027424,120]
[393800849,1763001172263,150.0,0.00027452,120]
[393800850,1763001172605,150.0,0.00027479,120]
[393800851,1763001172718,194.89893977,0.00027507,120]
[393800854,1763001308610,170.15419134,0.00040656,30]
[393800857,1763001400239,358.27,0.00013699,2]
[393800871,1763001679705,155370.15350026,0.00040638,30]
[393800875,1763001886012,613.0,0.00040639,120]
[393800881,1763002232109,-250.0,0.00017,2]
[393800882,1763002232119,-502.59138641,0.00017,2]
[393800883,1763002232133,-213.92808149,0.00017898,2]
[393800884,1763002232143,-46.94013715,0.00017898,2]
[393800885,1763002232153,-175.67127027,0.00017898,2]
[393800886,1763002232162,-952.93541257,0.00017997,2]
[393800887,1763002232182,-247.06458743,0.00017997,2]
[393800888,1763002232191,-300.0,0.00017997,2]
[393800889,1763002232201,-246.2385138,0.00017997,2]
[393800890,1763002232213,-421.8679983,0.00017997,2]
[393800891,1763002232272,-531.8934879,0.00017997,2]
[393800892,1763002232281,-300.0,0.00017997,2]
[393800893,1763002232290,-90.52181458,0.00017997,2]
[393800894,1763002232302,-209.47818542,0.00017997,2]
[393800895,1763002232313,-500.0,0.00017999,2]
[393800896,1763002232322,-500.0,0.00017999,2]
[393800897,1763002232331,-500.0,0.00017999,2]
[393800898,1763002232340,-500.0,0.00017999,2]
[393800899,1763002232350,-500.0,0.00017999,2]
[393800900,1763002232359,-405.87560758,0.00017999,2]
[393800901,1763002232370,-94.12439242,0.00017999,2]
[393800902,1763002232379,-411.89560758,0.00017999,2]
[393800903,1763002232390,-88.10439242,0.00017999,2]
[393800904,1763002232400,-500.0,0.00017999,2]
[393800905,1763002232409,-500.0,0.00017999,2]
[393800906,1763002232418,-524.75746719,0.00017999,2]
[393800907,1763002232428,-489.58677749,0.00017999,2]
[393800908,1763002232443,-20.31703612,0.00017999,2]
[393800909,1763002232453,-391.30170543,0.00017999,2]
[393800910,1763002232464,-108.69829457,0.00017999,2]
[393800911,1763002232473,-462.70828582,0.00017999,2]
[393800912,1763002232485,-37.29171418,0.00017999,2]
[393800913,1763002232494,-500.0,0.00017999,2]
[393800914,1763002232503,-289.27265772,0.00017999,2]
[393800915,1763002232513,-500.0,0.00017999,2]
[393800916,1763002232522,-500.0,0.00017999,2]
[393800917,1763002232532,-500.0,0.00017999,2]
[393800918,1763002232540,-500.0,0.00017999,2]
[393800919,1763002232550,-500.0,0.00017999,2]
[393800920,1763002232559,-500.0,0.00017999,2]
[393800921,1763002232568,-500.0,0.00017999,2]
[393800922,1763002232576,-500.0,0.00017999,2]
[393800923,1763002232585,-500.0,0.00017999,2]
[393800924,1763002232594,-527.35886803,0.00017999,2]
[393800925,1763002232603,-117.49676007,0.00017999,2]
[393800926,1763002232618,-124.59884083,0.00017999,2]
[393800927,1763002232628,-500.0,0.00017999,2]
[393800928,1763002232637,-500.0,0.00017999,2]
[393800929,1763002232646,-318.86245176,0.00017999,2]
[393800930,1763002232655,-500.0,0.00017999,2]
[393800931,1763002232663,-500.0,0.00017999,2]
[393800932,1763002232672,-500.0,0.00017999,2]
[393800933,1763002232685,-500.0,0.00017999,2]
[393800934,1763002232693,-500.0,0.00017999,2]
[393800935,1763002232703,-87.72549793,0.00017999,2]
[393800936,1763002232714,-412.27450207,0.00017999,2]
[393800937,1763002232724,-500.0,0.00017999,2]
[393800938,1763002232733,-500.0,0.00017999,2]
[393800939,1763002232743,-500.0,0.00017999,2]
[393800940,1763002232752,-499.59791146,0.00018,2]
[393800941,1763002232763,-5.90785068,0.00018,2]
[393800942,1763002232773,-169.92394371,0.00018,2]
[393800943,1763002232785,-504.03843876,0.00018,2]
[393800944,1763002232795,-269.28609548,0.00018,2]
[393800945,1763002232806,-233.72326215,0.00018,2]
[393800946,1763002232815,-139.57483325,0.00018,2]
[393800991,1763002238113,-361.08651563,0.00018,2]
[393800992,1763002238125,-500.0,0.00018,2]
[393800993,1763002238137,-287.05810861,0.00018,2]
[393800994,1763002238322,-215.58724508,0.00018,2]
[393800995,1763002238332,-71.74275492,0.00018,2]
[393800996,1763002238343,-429.42344458,0.00018,2]
[393800997,1763002238353,-500.0,0.00018,2]
[393800998,1763002238362,-500.27136744,0.00018,2]
[393800999,1763002238372,-500.0,0.00018,2]
[393801001,1763002238381,-1000.0,0.00018548,2]
[393801003,1763002238391,-250.0,0.000187,2]
[393801005,1763002238401,-735.35411794,0.00019096,2]
[393801007,1763002238410,-420.0,0.00019637,2]
[393801009,1763002238420,-420.0,0.00019637,2]
[393801011,1763002238429,-1680.0,0.00019733,2]
[393801013,1763002238439,-358.27,0.00020187,2]
[393801014,1763002238448,-260.86821863,0.00021213,2]
[393801016,1763002238457,-587.0,0.00021426,2]
[393801018,1763002238467,-166.66,0.00021551,2]
[393801021,1763002238482,-500.0,0.00021589,2]
[393801023,1763002238491,-2351.0,0.00021637,2]
[393801025,1763002238501,-166.66,0.00022004,30]
[393801027,1763002238511,-151.69,0.00022121,2]
[393801029,1763002238520,-150.0,0.00022259,2]
[393801031,1763002238530,-1024.24,0.00022361,2]
[393801032,1763002238539,-166.66,0.00022458,30]
[393801033,1763002238549,-166.66,0.00022912,30]
[393801034,1763002238560,-202.42,0.00023029,2]
[393801035,1763002238570,-166.66,0.00023366,30]
[393801036,1763002238580,-823.0,0.00023378,2]
[393801037,1763002238590,-215.46514677,0.00023415,2]
[393801038,1763002238600,-166.66,0.00023601,2]
[393801039,1763002238610,-500.0,0.00023699,2]
[393801040,1763002238620,-215.46514677,0.0002372,2]
[393801041,1763002238629,-3292.0,0.00023724,2]
[393801042,1763002238639,-1852.42,0.0002373,2]
[393801043,1763002238649,-166.66,0.00023819,30]
[393801044,1763002238659,-215.46514677,0.00023928,2]
[393801045,1763002238669,-200.0,0.00024206,2]
[393801046,1763002238679,-215.46514677,0.00024294,2]
[393801047,1763002238688,-185.419,0.00024319,6]
[393801048,1763002238698,-1406.888,0.00024319,6]
[393801049,1763002238707,-1000.0,0.00024319,2]
[393801050,1763002238718,-166.66,0.0002438,2]
[393801051,1763002238727,-215.46514681,0.00024461,2]
[393801052,1763002238737,-260.86821863,0.00024528,2]
[393801053,1763002238746,-151.0,0.00024613,2]
[393801054,1763002238756,-151.0,0.00024613,2]
[393801055,1763002238766,-151.0,0.00024613,2]
[393801056,1763002238775,-151.0,0.00024613,2]
[393801057,1763002238785,-151.0,0.00024613,2]
[393801058,1763002238795,-151.0,0.00024613,2]
[393801059,1763002238804,-151.0,0.00024613,2]
[393801060,1763002238815,-151.0,0.00024613,2]
[393801061,1763002238824,-151.0,0.00024613,2]
[393801062,1763002238834,-151.0,0.00024613,2]
[393801063,1763002238844,-151.0,0.00024613,2]
[393801064,1763002238853,-151.0,0.00024613,2]
[393801065,1763002238863,-151.0,0.00024613,2]
[393801066,1763002238872,-151.0,0.00024613,2]
[393801067,1763002238882,-151.0,0.00024613,2]
[393801068,1763002238892,-151.0,0.00024613,2]
[393801069,1763002238902,-151.0,0.00024613,2]
[393801070,1763002238911,-151.0,0.00024613,2]
[393801071,1763002238921,-151.0,0.00024613,2]
[393801072,1763002238931,-151.0,0.00024613,2]
[393801073,1763002238940,-151.0,0.00024613,2]
[393801074,1763002238950,-151.0,0.00024613,2]
[393801075,1763002238960,-151.0,0.00024613,2]
[393801076,1763002238970,-151.0,0.00024613,2]
[393801077,1763002238979,-155.92773059,0.00024613,2]
[393801078,1763002238989,-151.0,0.00024613,2]
[393801079,1763002238999,-151.0,0.00024613,2]
[393801080,1763002239009,-2316.39640791,0.00024627,2]
[393801081,1763002239018,-12467.97266545,0.00024628,2]
[393801082,1763002239028,-184.40509479,0.00024628,2]
[393801083,1763002239037,-25087.49981196,0.00024628,2]
[393801084,1763002239048,-182.17,0.00024658,2]
[393801085,1763002239057,-1156.61,0.00024658,30]
[393801086,1763002239067,-500.0,0.00024727,2]
[393801087,1763002239077,-500.0,0.00024727,2]
[393801088,1763002239087,-500.0,0.00024727,2]
[393801089,1763002239097,-500.0,0.00024727,2]
[393801090,1763002239107,-422.48622741,0.00024727,2]
[393801091,1763002239116,-500.0,0.00024727,2]
[393801092,1763002239130,-500.0,0.00024727,2]
[393801093,1763002239140,-499.99999999,0.00024727,2]
[393801094,1763002239150,-535.64657355,0.00024728,2]
[393801095,1763002239160,-64796.26273262,0.00024728,2]
[393801096,1763002239173,-2523.30084465,0.00024728,2]
[393801099,1763002240364,-8002.54499498,0.00024728,2]
[393801100,1763002240417,-309.34673656,0.00024728,2]
[393801101,1763002240523,-54496.96948187,0.00024728,2]
[393801102,1763002240535,-5736.73580015,0.00024728,2]
[393801109,1763002243231,-1338.89025357,0.00024728,2]
[393801111,1763002243244,-2988.17054658,0.00024728,2]
[393801112,1763002243255,-139835.74755015,0.00024728,2]
[393801113,1763002243284,-1012.85979988,0.00024728,2]
[393801114,1763002243390,-1130.40073013,0.00024728,2]
[393801115,1763002243496,-576.13387975,0.00024728,2]
[393801116,1763002243508,-2919.96472388,0.00024728,2]
[393801118,1763002246272,-1943.67220592,0.00024728,2]
[393801119,1763002246379,-337.31294928,0.00024728,2]
[393801120,1763002246391,-1075.09332639,0.00024728,2]
[393801121,1763002246435,-993.0,0.00024728,2]
[393801122,1763002246739,-20.07492003,0.00024728,2]
[393801123,1763002246754,-302.79999729,0.00024728,2]
[393801127,1763002268310,6386.51333872,7.945e-05,2]
[393801128,1763002268333,1400.50608128,7.945e-05,2]
[393801130,1763002285022,444.75,0.00024815,120]
[393801131,1763002285368,444.75,0.00027917,120]
[393801134,1763002629760,179.36,0.00030137,120]
[393801135,1763002763939,151.37,0.0001271,2]
[393801136,1763002764381,151.37,0.00013428,2]
[393801137,1763002764420,151.37,0.00014146,2]
[393801138,1763002764598,151.37,0.00014865,2]
[393801139,1763002764770,151.37,0.00015583,2]
[393801140,1763002764995,151.37,0.00016301,2]
[393801141,1763002834052,-151.37,0.0001702,2]
[393801145,1763003386831,-151.0,0.00028154,31]
[393801146,1763003386862,-151.0,0.00028154,31]
[393801147,1763003386894,-151.0,0.00028154,31]
[393801148,1763003386927,-155.430847,0.00028154,31]
[393801149,1763003386958,-154.208736,0.00028154,31]
[393801150,1763003387148,-151.0,0.00028154,31]
[393801151,1763003387181,-86.360417,0.00028154,31]
[393801156,1763003431364,-151.37,0.00017738,2]
[393801157,1763003431374,-300.0,0.00017998,2]
[393801158,1763003431383,-1200.0,0.00017998,2]
[393801159,1763003431392,-504.50111241,0.00017999,2]
[393801160,1763003431402,-500.0,0.00017999,2]
[393801161,1763003431412,-510.51700901,0.00017999,2]
[393801162,1763003431421,-500.0,0.00017999,2]
[393801163,1763003431431,-428.92638683,0.00017999,2]
[393801164,1763003431442,-71.07361317,0.00017999,2]
[393801165,1763003431451,-500.0,0.00017999,2]
[393801166,1763003431460,-518.5182389,0.00017999,2]
[393801167,1763003431470,-500.0,0.00017999,2]
[393801168,1763003431479,-500.0,0.00017999,2]
[393801169,1763003431488,-545.74481747,0.00017999,2]
[393801170,1763003431498,-151.37,0.00018456,2]
[393801171,1763003431507,-151.37,0.00019174,2]
[393801172,1763003431517,-317.87756919,0.00019638,2]
[393801173,1763003431532,-102.12243081,0.00019638,2]
[393801174,1763003431542,-1441.03956919,0.00019734,2]
[393801175,1763003431562,-238.96043081,0.00019734,2]
[393801176,1763003431571,-151.37,0.00019893,2]
[393801177,1763003431580,-146.49359569,0.00020611,2]
[393801178,1763003431591,-4.87640431,0.00020611,2]
[393801179,1763003431603,-1702.67256625,0.000211,2]
[393801180,1763003431615,-297.32743375,0.000211,2]
[393801181,1763003431625,-150.0,0.00021167,2]
[393801182,1763003431634,-151.37,0.00021329,2]
[393801183,1763003431644,-221.0,0.00021427,2]
[393801184,1763003431654,-2351.0,0.00021638,2]
[393801185,1763003431663,-2582.99,0.00022022,2]
[393801186,1763003431673,-151.37,0.00022048,2]
[393801187,1763003431683,-503.0,0.00022247,2]
[393801188,1763003431692,-151.37,0.00022766,2]
[393801189,1763003431701,-159.04,0.00023141,2]
[393801190,1763003431711,-244.78,0.00023407,2]
[393801192,1763003431720,-1041.97,0.00023448,2]
[393801194,1763003431729,-2035.64,0.00023483,2]
[393801196,1763003431738,-151.37,0.00023484,2]
[393801198,1763003431747,-500.0,0.00023552,2]
[393801200,1763003431757,-555.71241141,0.00023683,2]
[393801202,1763003431767,-3292.0,0.00023726,2]
[393801204,1763003431776,-311.00783761,0.00023734,2]
[393801206,1763003431785,-150.0,0.00023951,2]
[393801208,1763003431795,-1000.0,0.00024042,2]
[393801209,1763003431804,-153.03,0.00024083,2]
[393801210,1763003431813,-500.0,0.000242,2]
[393801212,1763003431823,-151.37,0.00024203,2]
[393801215,1763003431833,-6321.47,0.00024552,2]
[393801216,1763003431842,-500.0,0.00024703,2]
[393801219,1763003431851,-2647.7134058,0.00024715,2]
[393801221,1763003431862,-89918.3492312,0.00024715,2]
[393801223,1763003431872,-12172.56363152,0.00024715,2]
[393801225,1763003431881,-500.0,0.00024727,2]
[393801227,1763003431891,-500.0,0.00024727,2]
[393801229,1763003431900,-500.0,0.00024727,2]
[393801231,1763003431909,-500.0,0.00024727,2]
[393801233,1763003431919,-2968.69325,0.00024728,2]
[393801234,1763003431928,-151.0,0.00024728,2]
[393801235,1763003431938,-300.66472998,0.00024748,2]
[393801236,1763003431948,-500.0,0.00024773,2]
[393801237,1763003431957,-200.0,0.00024783,2]